bitfinex-derivatives/quotes_SOLF0:USTF0_20240820
["timestamp","ask_amount","ask_price","bid_price","bid_amount"]
[1724132727525,0.04325259,147.25,147.24,3.3936]
[1724132730832,26.07325259,147.25,147.23,0.05202128]
[1724132731629,0.04325259,147.25,147.23,0.05202128]
[1724132732337,0.04325259,147.25,147.24,3.3936]
[1724132733630,26.03,147.3,147.23,0.05202128]
[1724132733831,26.03,147.32,147.23,1.24640066]
[1724132734044,3.392,147.31,147.24,2.4974]
[1724132734639,26.03,147.32,147.24,5.8726068]
[1724132734944,0.04821463,147.29,147.26,0.04442887]
[1724132735433,0.04821463,147.29,147.28,3.3925]
[1724132739027,3.44061463,147.29,147.26,0.04442887]
[1724132739533,29.4228,147.28,147.26,0.04442887]
[1724132743041,29.47071463,147.29,147.26,3.43752887]
[1724132743934,26.07821463,147.29,147.27,3.3928]
[1724132744834,26.07821463,147.29,147.26,3.43742887]
[1724132745236,26.07821463,147.29,147.26,0.04442887]
[1724132745440,29.47071463,147.29,147.26,3.43742887]
[1724132746044,3.3927,147.28,147.26,3.43742887]
[1724132746242,26.03,147.27,147.26,0.04442887]
[1724132746936,29.4229,147.27,147.26,0.04442887]
[1724132750446,10.42,147.27,147.26,0.04442887]
[1724132751846,10.42,147.27,147.26,3.43752887]
[1724132752541,26.04,147.28,147.26,3.43752887]
[1724132752738,26.04,147.28,147.27,3.3929]
[1724132752937,3.44081463,147.29,147.27,3.3929]
[1724132755243,0.04821463,147.29,147.27,3.3929]
[1724132756537,0.04821463,147.29,147.28,3.3927]
[1724132756742,26.04,147.32,147.26,0.04442887]
[1724132756948,26.04,147.32,147.25,1.24618554]
[1724132757149,29.4319,147.32,147.29,3.3923]
[1724132757345,26.04,147.32,147.26,2.7067]
[1724132757651,3.3916,147.33,147.3,3.392]
[1724132757839,3.3916,147.33,147.3,3.43829184]
[1724132758648,26.04,147.36,147.3,0.04629184]
[1724132758844,26.04,147.36,147.32,0.04795358]
[1724132759144,26.04,147.36,147.33,3.3914]
[1724132760150,29.4309,147.36,147.33,3.3914]
[1724132760553,26.04,147.36,147.32,0.04795358]
[1724132760851,26.04,147.38,147.32,0.04795358]
[1724132761146,26.04,147.38,147.35,3.3909]
[1724132761547,29.4304,147.38,147.35,3.3909]
[1724132762245,26.04,147.38,147.34,0.04994531]
[1724132762445,6.7748,147.51,147.34,0.04994531]
[1724132762743,29.4289,147.45,147.41,3.3896]
[1724132762943,29.4289,147.45,147.35,26.04]
[1724132762944,26.04,147.45,147.39,2.5287]
[1724132763146,26.04,147.45,147.42,0.05214126]
[1724132764340,26.04,147.45,147.42,3.44134126]
[1724132764547,26.04,147.45,147.42,0.05214126]
[1724132764948,26.04,147.45,147.42,3.44144126]
[1724132766953,29.4289,147.45,147.42,0.05214126]
[1724132767458,3.3894,147.42,147.39,2.5287]
[1724132767660,29.4294,147.42,147.33,2.649]
[1724132767863,26.04,147.42,147.34,3.77950374]
[1724132768157,26.04,147.4,147.34,2.5341]
[1724132768354,26.04,147.4,147.35,1.24533547]
[1724132768551,26.04,147.4,147.34,2.5341]
[1724132768751,0.04388592,147.39,147.36,0.04422855]
[1724132769958,0.04388592,147.39,147.37,3.3904]
[1724132770257,0.04388592,147.39,147.36,0.04422855]
[1724132770653,0.04388592,147.39,147.37,3.3905]
[1724132771361,3.43398592,147.39,147.36,0.04422855]
[1724132771561,26.04,147.38,147.36,0.04422855]
[1724132771859,29.4305,147.38,147.36,0.04422855]
[1724132772556,3.3906,147.37,147.36,0.04422855]
[1724132773353,26.04,147.38,147.32,3.3916]
[1724132773658,26.04,147.35,147.28,2.6353]
[1724132773854,26.04,147.35,147.29,1.24587259]
[1724132774356,26.09019156,147.33,147.31,0.04313968]
[1724132775461,3.3917,147.32,147.31,0.04313968]
[1724132775870,29.48179156,147.33,147.31,0.04313968]
[1724132778068,0.05019156,147.33,147.31,0.04313968]
[1724132778669,0.05019156,147.33,147.32,3.3917]
[1724132779558,0.05019156,147.33,147.31,0.04313968]
[1724132781573,0.05019156,147.33,147.31,3.43503968]
[1724132784875,0.05019156,147.33,147.32,3.3917]
[1724132786368,1.501,147.42,147.35,3.3909]
[1724132786567,26.04,147.38,147.27,28.6793]
[1724132786963,26.04,147.36,147.28,1.24584202]
[1724132787163,26.04,147.36,147.27,2.6393]
[1724132787375,0.0435776,147.33,147.3,0.04965971]
[1724132787567,0.0435776,147.33,147.31,3.3918]
[1724132788573,0.0435776,147.33,147.3,3.44175971]
[1724132789571,3.4350776,147.33,147.3,3.44175971]
[1724132791074,3.3918,147.32,147.3,0.04965971]
[1724132791372,29.4318,147.32,147.3,0.04965971]
[1724132792782,26.04,147.32,147.25,2.5871]
[1724132792969,26.04,147.3,147.25,2.5871]
[1724132793175,29.4323,147.3,147.26,3.3929]
[1724132793780,3.3926,147.29,147.27,0.04502681]
[1724132793978,3.44209699,147.29,147.27,0.04502681]
[1724132794678,29.4327,147.28,147.27,0.04502681]
[1724132794879,26.04,147.28,147.22,2.7462]
[1724132795075,26.04,147.26,147.22,2.7462]
[1724132795273,26.04,147.26,147.17,40.42977988]
[1724132795480,26.04,147.26,147.18,4.64850738]
[1724132795680,26.04,147.26,147.19,1.24673607]
[1724132795982,0.04388172,147.24,147.21,0.04537245]
[1724132796281,29.47758172,147.24,147.21,0.04537245]
[1724132796480,26.08388172,147.24,147.21,0.04537245]
[1724132798788,29.47758172,147.24,147.21,3.43967245]
[1724132799481,0.04388172,147.24,147.22,3.394]
[1724132799884,0.04388172,147.24,147.21,0.04537245]
[1724132800779,0.04388172,147.24,147.21,3.43947245]
[1724132800983,26.08388172,147.24,147.21,3.43947245]
[1724132801179,26.08388172,147.24,147.21,0.04537245]
[1724132801378,29.47758172,147.24,147.21,0.04537245]
[1724132801573,26.08388172,147.24,147.21,0.04537245]
[1724132801988,26.08388172,147.24,147.21,3.43947245]
[1724132802286,0.04388172,147.24,147.21,0.04537245]
[1724132803280,0.04388172,147.24,147.22,3.394]
[1724132805483,0.04388172,147.24,147.21,3.43947245]
[1724132806088,3.43748172,147.24,147.21,3.43947245]
[1724132807682,0.04388172,147.24,147.22,3.394]
[1724132808292,3.43748172,147.24,147.21,3.43957245]
[1724132808587,0.04388172,147.24,147.21,0.04537245]
[1724132808776,26.04,147.23,147.21,0.04537245]
[1724132810192,26.04,147.23,147.21,3.43957245]
[1724132810589,3.43758172,147.24,147.21,3.43957245]
[1724132810884,0.04388172,147.24,147.21,0.04537245]
[1724132812084,0.04388172,147.24,147.22,3.3938]
[1724132814390,3.43758172,147.24,147.21,3.43947245]
[1724132814686,3.43758172,147.24,147.21,0.04537245]
[1724132814687,26.04,147.23,147.21,0.04537245]
[1724132815597,29.4339,147.23,147.21,0.04537245]
[1724132816587,0.04388172,147.24,147.21,0.04537245]
[1724132817490,3.43748172,147.24,147.21,3.43957245]
[1724132818390,3.43748172,147.24,147.21,0.04537245]
[1724132818391,29.4338,147.23,147.21,0.04537245]
[1724132818886,3.394,147.22,147.21,0.04537245]
[1724132822092,29.434,147.23,147.21,0.04537245]
[1724132824587,13.814,147.22,147.21,0.04537245]
[1724132827399,3.3943,147.21,147.18,3.395]
[1724132827697,10.42,147.19,147.17,3.3951]
[1724132827900,3.42328274,147.22,147.17,3.3951]
[1724132827901,10.42,147.18,147.17,3.3951]
[1724132828097,10.42,147.18,147.12,5.0866]
[1724132828400,10.46303724,147.16,147.14,3.44666488]
[1724132830796,0.04303724,147.16,147.15,3.3956]
[1724132834106,1.506,147.26,147.14,13.90244374]
[1724132834405,10.42,147.22,147.16,10.42]
[1724132834603,10.42,147.22,147.17,2.5175]
[1724132835008,13.8138,147.24,147.18,2.5985]
[1724132835208,0.04305478,147.21,147.2,3.3945]
[1724132838115,10.42,147.24,147.22,3.3938]
[1724132838612,10.42,147.25,147.19,10.42]
[1724132838817,10.42,147.25,147.23,3.3937]
[1724132839210,10.46293368,147.25,147.23,0.04988787]
[1724132840114,10.46293368,147.25,147.24,3.3936]
[1724132840314,0.04293368,147.25,147.24,3.3936]
[1724132840918,10.46293368,147.25,147.24,3.3936]
[1724132844106,10.46293368,147.25,147.23,3.44358787]
[1724132844314,10.42,147.24,147.23,3.44358787]
[1724132844616,10.42,147.24,147.23,0.04988787]
[1724132846516,13.8136,147.24,147.23,0.04988787]
[1724132848623,10.42,147.24,147.23,0.04988787]
[1724132848921,0.04293368,147.25,147.23,0.04988787]
[1724132849117,0.04293368,147.25,147.24,3.3936]
[1724132850928,0.04293368,147.25,147.23,3.44358787]
[1724132851822,0.04293368,147.25,147.24,3.3936]
[1724132852621,0.04293368,147.25,147.23,0.04988787]
[1724132853329,3.43643368,147.25,147.23,0.04988787]
[1724132855328,0.04293368,147.25,147.23,3.44368787]
[1724132855529,0.04293368,147.25,147.23,0.04988787]
[1724132855932,0.04293368,147.25,147.24,3.3936]
[1724132862437,0.04293368,147.25,147.23,0.04988787]
[1724132863035,3.43633368,147.25,147.23,0.04988787]
[1724132863445,0.04293368,147.25,147.23,0.04988787]
[1724132863743,3.43633368,147.25,147.23,0.04988787]
[1724132864646,3.43633368,147.25,147.23,3.44368787]
[1724132864831,0.04293368,147.25,147.23,0.04988787]
[1724132865035,0.04293368,147.25,147.24,3.3936]
[1724132865341,0.04293368,147.25,147.23,0.04988787]
[1724132865741,0.04293368,147.25,147.23,3.44358787]
[1724132867932,0.04293368,147.25,147.23,0.04988787]
[1724132868739,0.04293368,147.25,147.23,3.44368787]
[1724132869142,0.04293368,147.25,147.23,0.04988787]
[1724132869742,3.3936,147.24,147.23,0.04988787]
[1724132871342,3.43633368,147.25,147.23,0.04988787]
[1724132872542,13.85633368,147.25,147.23,0.04988787]
[1724132874041,13.8136,147.24,147.23,0.04988787]
[1724132874944,3.3936,147.24,147.23,0.04988787]
[1724132875145,13.8136,147.24,147.23,0.04988787]
[1724132875352,10.42,147.24,147.23,0.04988787]
[1724132877044,10.42,147.24,147.23,3.44368787]
[1724132878948,0.04293368,147.25,147.24,3.3936]
[1724132879143,10.46293368,147.25,147.24,3.3936]
[1724132880551,10.46293368,147.25,147.23,0.04988787]
[1724132880751,10.42,147.24,147.23,3.44358787]
[1724132882643,0.04293368,147.25,147.24,3.3936]
[1724132884856,0.04293368,147.25,147.23,3.44358787]
[1724132885157,10.46293368,147.25,147.23,0.04988787]
[1724132885557,10.46293368,147.25,147.23,3.44358787]
[1724132886657,10.46293368,147.25,147.23,0.04988787]
[1724132886856,10.46293368,147.25,147.18,5.2898]
[1724132887056,10.42,147.2,147.13,60.65802637]
[1724132887360,10.42,147.2,147.09,6.7938]
[1724132887361,10.42,147.18,147.14,1.24714112]
[1724132887558,10.42,147.18,147.11,18.3881]
[1724132887757,10.42,147.18,147.16,3.3953]
[1724132887958,10.47043452,147.18,147.16,3.439424]
[1724132888257,10.47043452,147.18,147.16,0.044124]
[1724132888458,0.05043452,147.18,147.16,0.044124]
[1724132889157,3.3939,147.23,147.16,0.044124]
[1724132889357,6.85069202,147.23,147.16,6.67687514]
[1724132889558,3.45679202,147.23,147.2,3.3943]
[1724132889758,26.07,147.24,147.16,5.3858]
[1724132890060,26.07,147.24,147.17,1.24692059]
[1724132890260,0.04438082,147.21,147.2,3.3945]
[1724132892162,26.11438082,147.21,147.19,0.04604386]
[1724132892558,0.04438082,147.21,147.19,0.04604386]
[1724132895566,3.3945,147.2,147.19,0.04604386]
[1724132896762,29.4645,147.2,147.19,0.04604386]
[1724132898660,0.04438082,147.21,147.19,0.04604386]
[1724132899962,3.43868082,147.21,147.19,0.04604386]
[1724132900160,0.04438082,147.21,147.19,0.04604386]
[1724132900658,0.04438082,147.21,147.19,3.44064386]
[1724132901065,0.04438082,147.21,147.19,0.04604386]
[1724132902761,0.04438082,147.21,147.19,3.44074386]
[1724132903570,3.43868082,147.21,147.19,0.04604386]
[1724132903766,0.04438082,147.21,147.19,0.04604386]
[1724132904168,0.04438082,147.21,147.2,3.3945]
[1724132904469,26.07,147.26,147.19,0.04604386]
[1724132904670,3.3935,147.25,147.21,3.3941]
[1724132904868,26.07,147.26,147.21,3.3941]
[1724132905071,26.07,147.24,147.17,5.3859]
[1724132905368,26.07,147.24,147.2,3.3944]
[1724132905572,0.04294209,147.22,147.2,3.3944]
[1724132905775,0.04294209,147.22,147.19,3.43781097]
[1724132906076,0.04294209,147.22,147.19,0.04321097]
[1724132906477,0.04294209,147.22,147.2,3.3945]
[1724132907677,0.04294209,147.22,147.21,3.3943]
[1724132910670,10.42,147.26,147.23,3.3937]
[1724132911579,10.42,147.26,147.24,3.3935]
[1724132914875,13.8131,147.26,147.24,3.3935]
[1724132915283,10.42,147.26,147.24,3.3935]
[1724132916678,10.42,147.26,147.23,3.44573469]
[1724132916981,10.42,147.24,147.23,0.05203469]
[1724132917177,10.42,147.24,147.18,2.5387]
[1724132917381,10.42,147.21,147.19,3.3945]
[1724132918384,10.46666386,147.21,147.19,3.44566302]
[1724132918884,0.04666386,147.21,147.2,3.3945]
[1724132930078,0.04666386,147.21,147.19,3.44586302]
[1724132930279,10.46666386,147.21,147.19,0.05116302]
[1724132930683,3.3945,147.2,147.19,0.05116302]
[1724132931285,41.68,147.2,147.12,5.1456]
[1724132931481,10.42,147.18,147.12,5.1456]
[1724132931685,10.42,147.16,147.12,5.1456]
[1724132932382,10.42,147.16,147.15,3.3956]
[1724132932888,10.42,147.17,147.15,3.3956]
[1724132933085,10.47007174,147.17,147.15,3.3956]
[1724132933285,10.47007174,147.17,147.13,0.05205507]
[1724132933488,10.47007174,147.17,147.13,1.29926418]
[1724132934687,0.05007174,147.17,147.13,1.29926418]
[1724132935993,0.05007174,147.17,147.16,3.3954]
[1724132942589,0.05007174,147.17,147.13,0.05205507]
[1724132942796,10.42,147.16,147.13,1.29928835]
[1724132943198,10.42,147.16,147.14,3.3957]
[1724132946203,3.44537174,147.17,147.15,3.3956]
[1724132946204,10.47007174,147.17,147.15,3.3956]
[1724132946700,13.86527174,147.17,147.14,3.3958]
[1724132946895,10.42,147.16,147.14,3.3958]
[1724132947096,10.42,147.16,147.13,0.05205507]
[1724132948308,10.42,147.14,147.13,0.05205507]
[1724132950509,13.8159,147.14,147.13,0.05205507]
[1724132957213,10.42,147.14,147.08,65.91962743]
[1724132957408,10.42,147.12,147.09,1.24755246]
[1724132958206,13.8685311,147.12,147.09,4.69653178]
[1724132958410,13.8685311,147.12,147.09,3.44897932]
[1724132960116,13.8685311,147.12,147.1,3.3968]
[1724132961621,13.8685311,147.12,147.09,3.44897932]
[1724132962323,10.42,147.1,147.09,3.44897932]
[1724132962526,10.42,147.11,147.09,3.44897932]
[1724132963319,10.42,147.11,147.1,3.3968]
[1724132965219,0.0520311,147.12,147.1,3.3968]
[1724132967321,10.42,147.11,147.1,3.3968]
[1724132970234,10.42,147.11,147.09,3.44887932]
[1724132970438,10.42,147.1,147.09,0.05197932]
[1724132971826,13.8168,147.1,147.09,0.05197932]
[1724132972734,0.0520311,147.12,147.09,0.05197932]
[1724132973131,10.42,147.11,147.09,0.05197932]
[1724132973740,10.42,147.11,147.09,3.44877932]
[1724132973928,10.42,147.11,147.09,0.05197932]
[1724132974130,0.0520311,147.12,147.09,0.05197932]
[1724132974335,0.0520311,147.12,147.11,3.3966]
[1724132976330,0.0520311,147.12,147.1,3.3968]
[1724132976531,10.42,147.11,147.09,2.77207932]
[1724132977238,10.42,147.11,147.1,3.3968]
[1724132977435,10.42,147.11,147.09,2.77207932]
[1724132977638,10.42,147.11,147.09,0.05197932]
[1724132978139,10.42,147.11,147.09,3.44897932]
[1724132980240,10.42,147.1,147.09,3.44897932]
[1724132982345,10.42,147.11,147.1,3.3968]
[1724132983847,10.42,147.11,147.09,3.44897932]
[1724132984041,10.42,147.1,147.09,3.44897932]
[1724132984441,10.42,147.1,147.09,0.05197932]
[1724132985245,10.42,147.1,147.05,2.4958]
[1724132985547,41.68,147.13,147.06,1.24773539]
[1724132985548,10.42,147.07,147.06,1.24773539]
[1724132985743,10.42,147.07,147.06,4.64543539]
[1724132989342,10.46304262,147.08,147.06,1.24773539]
[1724132989546,10.46304262,147.08,147.07,3.3975]
[1724132989942,10.46304262,147.08,147.05,2.54453468]
[1724132990247,10.46304262,147.08,147.06,1.24773156]
[1724132990448,10.46304262,147.08,147.05,2.54453468]
[1724132990649,10.46304262,147.08,147.06,1.24773847]
[1724132991251,0.04304262,147.08,147.07,3.3975]
[1724132991446,10.46304262,147.08,147.07,3.3975]
[1724132992956,10.46304262,147.08,147.06,3.3976]
[1724132993250,10.42,147.07,147.06,3.3976]
[1724132993456,10.42,147.07,147.06,4.64539529]
[1724132994047,10.42,147.07,147.06,3.3976]
[1724132994448,10.42,147.07,147.05,3.44663468]
[1724132994647,13.89034822,147.07,147.05,0.04873468]
[1724132994945,10.42,147.07,147.05,0.04873468]
[1724132995348,13.82310789,147.07,147.05,0.04873468]
[1724132995864,17.22060789,147.07,147.05,0.04873468]
[1724132997652,41.68,147.06,147.01,40.47613222]
[1724132997851,81.28123303,147.06,146.91,10.42]
[1724132998056,10.42,147.0,146.92,11.66867074]
[1724132998258,10.42,147.01,146.93,1.24867074]
[1724132998555,10.42,147.01,146.94,3.75707074]
[1724132998854,0.05001613,146.99,146.96,0.04546141]
[1724132999651,0.05001613,146.99,146.97,3.3998]
[1724132999846,0.05001613,146.99,146.96,0.04546141]
[1724133001352,0.05001613,146.99,146.98,3.3996]
[1724133002657,10.42,147.04,146.98,13.76662403]
[1724133002861,3.3174018,147.07,146.98,13.76662403]
[1724133003164,10.42,147.05,147.01,3.3987]
[1724133003763,10.42,147.05,146.98,13.76662403]
[1724133003764,13.818,147.05,147.02,0.04849285]
[1724133004055,10.42,147.03,147.02,0.04849285]
[1724133007757,10.47170692,147.04,147.02,0.04849285]
[1724133007957,3.42713226,147.03,147.02,0.04849285]
[1724133008158,3.41354466,147.03,147.02,0.04849285]
[1724133008754,6.81194466,147.03,147.02,0.04849285]
[1724133009154,13.8184,147.03,147.02,0.04849285]
[1724133009458,17.18835376,147.03,147.02,0.04849285]
[1724133010361,3.3989,147.01,146.98,3.3994]
[1724133010557,10.42,147.0,146.98,3.3994]
[1724133011558,10.46532708,147.0,146.98,3.44687159]
[1724133012357,10.46532708,147.0,146.98,0.04747159]
[1724133012761,10.46532708,147.0,146.83,225.0]
[1724133013070,10.42,146.95,146.92,1.24889679]
[1724133013261,10.42,146.95,146.9,5.2972]
[1724133013567,10.42,146.95,146.92,1.24907747]
[1724133013966,10.47074696,146.95,146.93,3.4006]
[1724133014263,0.05074696,146.95,146.92,0.0441252]
[1724133014468,10.42,146.93,146.92,1.23894697]
[1724133014664,13.85643146,146.93,146.85,16.60418043]
[1724133014868,13.85643146,146.93,146.86,1.24937212]
[1724133015073,17.25723146,146.93,146.89,3.4015]
[1724133015263,13.85643146,146.93,146.85,16.66124549]
[1724133015569,10.42,146.91,146.88,0.04402398]
[1724133015765,0.04944943,146.9,146.88,3.44572398]
[1724133016469,0.04944943,146.9,146.89,3.4017]
[1724133018671,10.46944943,146.9,146.88,0.04402398]
[1724133019063,10.46944943,146.9,146.88,3.44572398]
[1724133021265,10.46944943,146.9,146.88,0.04402398]
[1724133022872,3.4017,146.89,146.88,0.04402398]
[1724133023576,10.42,146.89,146.88,0.04402398]
[1724133023775,0.04944943,146.9,146.88,0.04402398]
[1724133024076,0.04944943,146.9,146.88,3.44592398]
[1724133024271,0.04944943,146.9,146.88,0.04402398]
[1724133024468,10.42,146.94,146.88,0.04402398]
[1724133024667,17.23522432,146.94,146.9,3.4013]
[1724133024872,13.83452432,146.94,146.9,3.4013]
[1724133025077,13.821,146.92,146.89,3.4015]
[1724133025488,13.87255514,146.92,146.89,3.45294186]
[1724133025671,17.3392021,146.92,146.89,3.45294186]
[1724133025877,10.42,146.9,146.89,0.05144186]
[1724133026978,3.5182021,146.92,146.89,0.05144186]
[1724133027188,3.4013,146.91,146.89,0.05144186]
[1724133027485,10.42,146.9,146.89,0.05144186]
[1724133027882,10.42,146.9,146.89,3.45314186]
[1724133028281,17.3393021,146.92,146.89,3.45314186]
[1724133028479,6.9193021,146.92,146.89,3.45314186]
[1724133029486,3.5182021,146.92,146.9,3.4012]
[1724133030187,0.05155514,146.92,146.91,3.4012]
[1724133030383,26.1,147.03,146.89,3.41632757]
[1724133030589,26.1,146.99,146.9,32.51503888]
[1724133030778,3.45260325,146.98,146.91,6.14444505]
[1724133030981,26.1,147.01,146.92,26.1]
[1724133031379,0.04953803,146.98,146.95,0.04487938]
[1724133031684,26.1,147.03,146.95,0.04487938]
[1724133031886,26.1,147.03,146.94,1.18505607]
[1724133032182,26.1,147.03,146.98,3.3994]
[1724133032388,26.1,147.03,146.93,26.1]
[1724133032591,26.1,147.03,146.94,1.18486119]
[1724133032982,0.04921926,147.0,146.97,0.04686924]
[1724133033485,0.04921926,147.0,146.98,3.3994]
[1724133034086,0.04921926,147.0,146.99,3.3993]
[1724133037188,26.1,147.03,147.01,3.3986]
[1724133038288,26.14420322,147.03,147.01,3.44949113]
[1724133038887,26.14420322,147.03,147.02,3.3986]
[1724133039383,26.14420322,147.03,147.01,3.44969113]
[1724133040180,26.14420322,147.03,147.02,3.3986]
[1724133040381,0.04420322,147.03,147.02,3.3986]
[1724133040586,26.1,147.11,147.01,26.15089113]
[1724133040790,29.4972,147.09,147.04,3.398]
[1724133040993,29.51876752,147.09,147.01,26.1]
[1724133041588,0.04957824,147.06,147.05,3.3978]
[1724133044591,0.04957824,147.06,147.04,3.4412659]
[1724133046696,0.04957824,147.06,147.05,3.398]
[1724133046997,3.36925628,147.1,147.04,0.0431659]
[1724133047192,0.0993,147.16,147.07,3.3974]
[1724133047193,26.1,147.11,147.07,3.3974]
[1724133047583,29.4967,147.11,147.07,3.3974]
[1724133047986,26.1,147.11,147.07,3.3974]
[1724133048190,0.04355665,147.1,147.08,0.04828921]
[1724133048394,0.04355665,147.1,147.08,0.0521174]
[1724133050797,0.04355665,147.1,147.08,3.4493174]
[1724133055601,0.04355665,147.1,147.09,3.397]
[1724133056297,0.04355665,147.1,147.08,0.0521174]
[1724133056797,3.44055665,147.1,147.08,0.0521174]
[1724133058295,29.497,147.09,147.08,0.0521174]
[1724133058597,26.1,147.09,147.04,2.5763]
[1724133058802,3.3974,147.08,147.05,3.3978]
[1724133059503,3.45959215,147.07,147.05,3.4471576]
[1724133059905,3.3976,147.07,147.05,0.0493576]
[1724133060105,3.40423596,147.07,147.05,0.0493576]
[1724133060305,26.1,147.09,147.05,0.0493576]
[1724133060306,3.3973,147.08,147.05,0.0493576]
[1724133060608,3.32782404,147.07,147.05,0.0493576]
[1724133060806,26.1,147.09,147.05,0.0493576]
[1724133061005,3.3974,147.08,147.05,3.4472576]
[1724133061301,26.1,147.09,147.05,0.0493576]
[1724133061506,26.14355665,147.1,147.05,0.0493576]
[1724133062005,29.54035665,147.1,147.07,3.3974]
[1724133062405,0.04355665,147.1,147.05,0.0493576]
[1724133062794,0.04355665,147.1,147.05,26.1493576]
[1724133062995,0.04355665,147.1,147.09,3.397]
[1724133066295,3.47012002,147.16,147.08,0.04771371]
[1724133066296,3.3957,147.15,147.12,3.3963]
[1724133066706,26.1,147.16,147.07,29.46834814]
[1724133066906,29.55494243,147.16,147.07,29.46834814]
[1724133067296,26.1,147.16,147.1,0.0448163]
[1724133067502,0.04341706,147.13,147.1,0.0448163]
[1724133067803,0.04341706,147.13,147.12,3.3963]
[1724133072210,0.04341706,147.13,147.11,3.3965]
[1724133072806,0.04341706,147.13,147.12,3.3963]
[1724133073911,0.04341706,147.13,147.11,3.3965]
[1724133075813,0.04341706,147.13,147.12,3.3963]
[1724133078415,0.04341706,147.13,147.11,3.3965]
[1724133078815,0.04341706,147.13,147.1,0.0448163]
[1724133079117,0.04341706,147.13,147.11,3.3964]
[1724133079811,0.0954,147.23,147.1,0.0448163]
[1724133080115,26.1,147.19,147.1,0.0448163]
[1724133080310,6.80530891,147.18,147.14,3.3957]
[1724133080816,6.80530891,147.18,147.1,26.1]
[1724133080817,3.3954,147.17,147.12,3.3962]
[1724133081018,26.13110498,147.17,147.15,0.04684745]
[1724133081213,26.13110498,147.17,147.15,0.0506448]
[1724133081612,6.82244407,147.16,147.15,0.0506448]
[1724133081813,3.3956,147.16,147.15,0.0506448]
[1724133082220,6.71346677,147.16,147.15,0.0506448]
[1724133082619,0.03110498,147.17,147.15,0.0506448]
[1724133083312,3.42650498,147.17,147.15,0.0506448]
[1724133087014,0.03110498,147.17,147.15,3.4462448]
[1724133088524,3.42630498,147.17,147.15,0.0506448]
[1724133089519,3.3954,147.16,147.15,0.0506448]
[1724133089818,0.03110498,147.17,147.15,0.0506448]
[1724133090023,0.03110498,147.17,147.16,3.3954]
[1724133090426,3.37263749,147.2,147.18,3.3948]
[1724133090730,26.1,147.24,147.18,3.3948]
[1724133090919,3.3942,147.22,147.18,3.3948]
[1724133091228,6.80756983,147.22,147.18,3.3948]
[1724133091621,6.80756983,147.22,147.19,0.05171068]
[1724133092425,3.3942,147.22,147.19,0.05171068]
[1724133092617,6.70607843,147.22,147.19,0.05171068]
[1724133092821,6.70607843,147.22,147.19,3.44641068]
[1724133093223,3.3938,147.23,147.19,0.05171068]
[1724133093526,3.3938,147.23,147.2,3.3944]
[1724133095720,3.3938,147.23,147.19,3.44631068]
[1724133096026,3.3938,147.23,147.19,0.05171068]
[1724133096330,3.3938,147.23,147.2,3.3944]
[1724133096530,3.394,147.22,147.19,0.05171068]
[1724133097131,3.394,147.22,147.19,3.44621068]
[1724133097924,6.72793487,147.22,147.19,3.44621068]
[1724133098124,3.3944,147.21,147.19,0.05171068]
[1724133098533,13.8244,147.21,147.19,0.05171068]
[1724133098930,17.28083365,147.21,147.19,0.05171068]
[1724133099129,13.8244,147.21,147.19,0.05171068]
[1724133099930,17.26036774,147.21,147.19,0.05171068]
[1724133100529,10.43,147.21,147.19,0.05171068]
[1724133100829,13.824,147.22,147.19,0.05171068]
[1724133101025,10.43,147.22,147.19,0.05171068]
[1724133101530,13.82049419,147.22,147.19,0.05171068]
[1724133101934,3.3943,147.21,147.19,3.44631068]
[1724133102938,3.3943,147.21,147.19,0.05171068]
[1724133104034,6.84350258,147.21,147.19,0.05171068]
[1724133104432,13.8245,147.2,147.19,0.05171068]
[1724133105436,17.15357096,147.2,147.19,0.05171068]
[1724133106328,13.8245,147.2,147.19,0.05171068]
[1724133106743,17.27427037,147.2,147.19,0.05171068]
[1724133107128,13.8245,147.2,147.19,0.05171068]
[1724133107439,3.3945,147.2,147.19,0.05171068]
[1724133108039,3.3944,147.21,147.19,0.05171068]
[1724133108338,10.43,147.23,147.19,0.05171068]
[1724133108538,3.3944,147.21,147.2,0.04852413]